Cogmind - Beta 16.1 @@@ ROGUE MODE // 2026.02.27 @ 16:52:20 Player: stevie364 Result: Destroyed by 8R-AWN with 8R-AWN's Boregun Performance ------------- Evolutions (1) 500 Regions Visited (5) 1000 Robots Destroyed (56) 280 Value Destroyed (1415) 1415 Prototype IDs (28) 560 Alien Tech Used (0) 0 Bonus (420) 420 TOTAL SCORE: 4175 Bonus ------- High Alert Combat Kills 43 Follower Combat Kills 77 Aligned with FarCom 300 Cogmind --------- Core Integrity 0/400 Matter 264/300 Energy 100/100 System Corruption 3% Temperature Cool (0) Movement Core (50) Location -9/Exiles Parts ------- > --- POWER (1) -------- (None) > --- PROPULSION (2) --- (None) > --- UTILITY (4) ------ (None) > --- WEAPON (2) ------- Heavy Flail > --- INVENTORY (5) ---- VTOL Module Improved Flight Unit Lightpack 2.0 Peak State ------------ > --- POWER ------------ Improved Ion Engine > --- PROPULSION ------- Improved Treads Improved Treads > --- UTILITY ---------- Large Storage Unit Seismic Detector Light Armor Plating Hardened Light Armor Plating > --- WEAPON ----------- Minigun Minigun > --- INVENTORY -------- VTOL Module VTOL Module VTOL Module VTOL Module VTOL Module Improved Flight Unit Lightpack 2.0 ECM Suite Hardened Light Armor Plating Hacking Suite Minigun Minigun Heavy Flail [Rating: 22] Favorites ----------- Power Improved Ion Engine Engine Improved Ion Engine Propulsion Light Treads Treads Light Treads Flight Unit VTOL Module Utility Large Storage Unit Device Seismic Detector Storage Large Storage Unit Protection Light Armor Plating Weapon Minigun Energy Gun Medium Laser Ballistic Gun Minigun Ballistic Cannon Light Cannon Impact Weapon Heavy Flail Build | -11 -10 -10 -9 -9 -9 ------- Run | Yrd Mat Min Mat Min Exi Slots Evolved 2 | . . . 2 . . Power . | . . . . . . Propulsion . | . . . . . . Utility 2 | . . . 2 . . Weapon . | . . . . . . Parts Attached 37 | 7 3 1 20 1 5 Power 6 | 1 . . 4 . 1 Engine 6 | 1 . . 4 . 1 Core . | . . . . . . Reactor . | . . . . . . Propulsion 9 | 2 . . 4 1 2 Treads 7 | 2 . . 4 1 . Leg . | . . . . . . Wheel . | . . . . . . Hover . | . . . . . . Flight 2 | . . . . . 2 Utility 10 | 2 1 1 5 . 1 Device 2 | 1 . 1 . . . Storage 2 | 1 1 . . . . Processor . | . . . . . . Hackware . | . . . . . . Protection 6 | . . . 5 . 1 Artifact . | . . . . . . Weapon 12 | 2 2 . 7 . 1 Energy Gun 1 | 1 . . . . . Energy Cannon . | . . . . . . Ballistic Gun 9 | 1 1 . 6 . 1 Ballistic Cannon 1 | . 1 . . . . Launcher . | . . . . . . Special Weapon . | . . . . . . Impact Weapon 1 | . . . 1 . . Slashing Weapon . | . . . . . . Piercing Weapon . | . . . . . . Special Melee Weapon . | . . . . . . Unidentified Prototypes 1 | . . . 1 . . Parts Lost 14 | . 1 . 2 . 11 Power 2 | . . . 1 . 1 Propulsion 3 | . . . . . 3 Utility 6 | . 1 . 1 . 4 Weapon 3 | . . . . . 3 Highest Loss Streak 11 | . 1 . 2 . 11 To Critical Strikes 3 | . . . . . 3 Average Backups 13 | 4 8 14 14 15 12 Power 1 | . 1 2 1 1 . Propulsion 5 | 2 3 4 5 5 5 Utility 3 | . . 4 4 4 3 Weapon 3 | 1 1 4 4 3 2 Tool/Special . | . . . . . . Unused Backups 32 | . 3 . 20 1 8 Power 3 | . 1 . 2 . . Propulsion 18 | . 1 . 13 . 4 Utility 5 | . . . 1 . 4 Weapon 6 | . 1 . 4 1 . Tool/Special . | . . . . . . Average Slot Usage (%) 92 | . 100 85 90 100 82 Engine 10 | . 14 14 9 11 8 Treads 23 | . 28 28 22 22 17 Device 9 | . 14 . 11 11 9 Storage 11 | . 14 14 11 11 9 Protection 12 | . . . 15 22 17 Energy Gun 1 | . 12 . . . . Ballistic Gun 18 | . 11 14 20 22 17 Ballistic Cannon 3 | . 4 14 1 . . Peak Build Rating 22 | 7 10 10 20 21 22 Average Rating 14 | 5 7 9 15 20 18 On Entrance 11 | . 7 9 10 20 21 Avg Prop Armor Cover (%) . | . . . . . . Naked Turns . | . . . . . . Heaviest Build 48 | 14 32 32 48 42 42 Greatest Support 46 | 40 40 40 46 46 46 Greatest Overweight (x) 1 | 1 . . 1 . 1 Average Overweight (x) . | . . . . . . Largest Inventory Capacity 15 | 8 15 15 15 15 15 Average Capacity 13 | 7 10 15 15 15 13 Most Carried 15 | 6 15 15 15 15 15 Average Carried 13 | 4 8 14 14 14 13 Final Capacity 15 | 8 15 15 15 15 5 Final Carried 15 | 5 15 15 15 15 5 Class Distribution -------------------- 93% | Mutant 6% | Scavenger-Mutant Dominant Class ---------------- Mutant | -10/Materials Mutant | -10/Mines Mutant | -9/Materials Mutant | -9/Mines Mutant | -9/Exiles Resources | -11 -10 -10 -9 -9 -9 ----------- Run | Yrd Mat Min Mat Min Exi Matter Collected 1420 | 287 100 58 907 59 9 Remotely . | . . . . . . Salvage Created 1857 | 43 199 21 1513 56 25 Parts 122 | 8 10 1 96 7 . Haulers Intercepted 5 | . 1 . 4 . . Recyclers Shooed 3 | 1 . . 2 . . Parts Field Recycled . | . . . . . . Retrieved Matter . | . . . . . . Parts Self-Destructed . | . . . . . . Prevented . | . . . . . . Parts Restored . | . . . . . . Kills | -11 -10 -10 -9 -9 -9 ------- Run | Yrd Mat Min Mat Min Exi Combat Hostiles Destroyed 46 | . 5 2 35 2 2 Melee 2 | . . . 1 . 1 Guns 37 | . 1 1 32 2 1 Cannons 6 | . 4 1 1 . . Classes Destroyed 11 | 1 2 2 6 . . Worker 1 | . . . 1 . . Tunneler 4 | 2 . 1 . 1 . Hauler 5 | . 1 . 4 . . Recycler 1 | . . . 1 . . Operator 1 | . . . 1 . . Watcher 1 | . . . 1 . . Swarmer 12 | . . . 10 2 . Grunt 21 | . 5 . 16 . . Sentry 9 | . . . 9 . . Demolisher 1 | . . 1 . . . Assembled 3 | . . 1 . . 2 Best Kill Streak 7 | 1 3 1 7 2 1 Combat Bots Only 7 | . 3 1 7 2 1 Max Kills in Single Turn 1 | 1 1 1 1 1 1 Gunslinging . | . . . . . . Exploded . | . . . . . . Melee 1 | . . . 1 . 1 Uniques/NPCs Destroyed . | . . . . . . Combat | -11 -10 -10 -9 -9 -9 -------- Run | Yrd Mat Min Mat Min Exi Hostile Shots Fired 316 | . 37 4 133 5 137 Missed 90 | . 9 1 35 2 43 Hits 226 | . 28 3 98 3 94 Projectile 226 | . 28 3 98 3 94 Critical Strikes 19 | . . . . . 19 Damage Taken 2985 | . 265 39 1109 26 1546 Core 465 | . 34 29 30 . 372 Absorbed by Shields . | . . . . . . Regen/Repaired (Parts) 89 | . . . 89 . . Core Remaining (%) 87 | 100 . 74 . . . Volleys Fired 146 | 17 18 6 97 3 5 Largest 2 | 2 2 2 2 2 2 Hottest 80 | 70 80 53 53 50 50 Shots Fired 278 | 19 36 12 193 8 10 Gun 247 | 19 24 6 180 8 10 Cannon 31 | . 12 6 13 . . Launcher . | . . . . . . Special . | . . . . . . Kinetic 263 | 17 23 12 193 8 10 Thermal 15 | 2 13 . . . . Explosive . | . . . . . . Electromagnetic . | . . . . . . Robot Hit Streak 15 | 4 14 2 15 6 2 Robot Miss Streak 5 | 2 4 2 5 2 3 Penetration Max . | . . . . . . Secondary Targets 5 | . . . 5 . . Max Gunslinging Chain 1 | . . . 1 . . Shots Hit Robots 201 | 12 26 8 140 4 11 Core Hits 92 | 5 11 4 66 4 2 Critical Kills 1 | . . . 1 . . Critical Parts Destroyed 4 | . . . 1 . 3 Critical Strikes 9 | . 3 . 3 . 3 Burn 3 | . 3 . . . . Blast 1 | . . . 1 . . Smash 5 | . . . 2 . 3 Melee Attacks 17 | . . . 7 . 10 Impact 17 | . . . 7 . 10 Slashing . | . . . . . . Piercing . | . . . . . . Sneak Attacks 1 | . . . 1 . . Combat Hostiles . | . . . . . . Follow-up Attacks . | . . . . . . Damage Inflicted 3708 | 103 381 117 2557 99 451 Guns 2603 | 103 207 64 2106 72 51 Cannons 328 | . 155 51 122 . . Explosions . | . . . . . . Melee 686 | . . . 286 . 400 Ramming 91 | . 19 2 43 27 . Kinetic 2821 | 91 264 115 2228 72 51 Thermal 110 | 12 98 . . . . Explosive . | . . . . . . Electromagnetic . | . . . . . . Impact 686 | . . . 286 . 400 Slashing . | . . . . . . Piercing . | . . . . . . Highest Corruption 3 | . . . 3 3 3 Average Corruption 1 | . . . 1 3 3 Corruption Purged . | . . . . . . Corruption Blocked . | . . . . . . Effects 31 | . . . 10 13 8 Message Errors 7 | . . . 2 3 2 Matter Fused 7 | . . . 4 3 . Heat Flow Errors 6 | . . . 2 3 1 Energy Discharges 3 | . . . 1 1 1 Data Loss (minor) 2 | . . . . . 2 Data Loss (major) 2 | . . . . 1 1 Misfires 4 | . . . 1 2 1 Overload Shots . | . . . . . . Overflow Damage 274 | . . . 138 . 136 Projectiles . | . . . . . . Explosions . | . . . . . . Melee 274 | . . . 138 . 136 Knockbacks 9 | . 4 1 1 . 3 Impact 4 | . . . 1 . 3 Kinetic 3 | . 2 1 . . . Secondary 2 | . 2 . . . . Self-Inflicted Damage . | . . . . . . Shots . | . . . . . . Rammed 14 | . 2 1 8 3 . Targets Rammed 15 | . 2 1 9 3 . Kicked . | . . . . . . Crushed 1 | . . . 1 . . Highest Temperature 240 | 60 168 . 137 240 229 Average Temperature 50 | 30 58 . 26 97 80 Received Heat Transfer 456 | . 84 . 372 . . Siege Activations . | . . . . . . Martial Activations . | . . . . . . Shielding Activations . | . . . . . . Robots Disrupted . | . . . . . . Combat Hostiles . | . . . . . . Robots Corrupted 1 | . . . 1 . . Combat Hostiles 1 | . . . 1 . . Parts Fried 4 | . . . 4 . . Impact Corruptions 7 | . . . 4 . 3 Robots Melted . | . . . . . . Combat Hostiles . | . . . . . . Parts Melted 1 | . 1 . . . . Heat Transferred 555 | 37 518 . . . . Parts Sabotaged . | . . . . . . Parts Stolen . | . . . . . . Parts Stripped . | . . . . . . Power Chain Reactions . | . . . . . . Alert | -11 -10 -10 -9 -9 -9 ------- Run | Yrd Mat Min Mat Min Exi Maximum Alert Level 2 | . . . 2 1 . Low Security (%) 82 | 100 100 100 64 92 . Level 1 9 | . . . 18 7 . Level 2 7 | . . . 17 . . Level 3 . | . . . . . . Level 4 . | . . . . . . Level 5 . | . . . . . . High Security . | . . . . . . Max Security . | . . . . . . Peak Influence 590 | 5 63 20 590 220 . Initial 220 | . . 5 . 220 . Average 103 | . 10 . 196 80 . Influence Increases 1437 | 10 118 25 1105 179 . Destroy 0b10 Robot/C 920 | . 100 20 700 100 . Destroy 0b10 Robot/NC 65 | 10 5 5 40 5 . Destroy Leader 222 | . 12 . 190 20 . Allied During Kill 9 | . . . . 9 . Successful Hack 19 | . . . 19 . . Disable Machine 30 | . . . 15 15 . Destroy Structure 7 | . 1 . 6 . . Lose Combat Pursuer 165 | . . . 135 30 . Influence Decreases 1437 | 10 104 39 539 687 58 Entered New Map 413 | . . 9 . 346 58 Time Decay 974 | 10 94 30 519 321 . Lost Part 30 | . 10 . 20 . . Lost Ally 20 | . . . . 20 . Squads Dispatched 8 | . 4 . 4 . . Investigation 3 | . 2 . 1 . . Extermination . | . . . . . . Reinforcement 5 | . 2 . 3 . . Assault . | . . . . . . Garrison . | . . . . . . Intercept . | . . . . . . Searches Triggered . | . . . . . . Construction Impeded . | . . . . . . Haulers Reinforced . | . . . . . . Active Scanning Responses . | . . . . . . Cargo Convoy Interrupts . | . . . . . . Stealth | -11 -10 -10 -9 -9 -9 --------- Run | Yrd Mat Min Mat Min Exi Distress Signals 4 | . . . 4 . . Communications Jammed . | . . . . . . Distress Signals . | . . . . . . Times Spotted 88 | . 10 3 59 6 10 Peak Tracking Total 12 | . 4 2 8 4 12 Tactical Retreats 11 | . . 1 6 1 3 Traps | -11 -10 -10 -9 -9 -9 ------- Run | Yrd Mat Min Mat Min Exi Traps Triggered 3 | . 1 . 2 . . Indirectly . | . . . . . . Trap Hack Attempts . | . . . . . . Triggered . | . . . . . . Disarmed . | . . . . . . Reprogrammed . | . . . . . . Reused . | . . . . . . Traps Extracted . | . . . . . . Installed . | . . . . . . Triggered . | . . . . . . Machines | -11 -10 -10 -9 -9 -9 ---------- Run | Yrd Mat Min Mat Min Exi Machines Disabled 6 | . . . 1 1 4 Max in Single Turn 1 | . . . 1 . 1 Machines Repaired . | . . . . . . Machines Dismantled . | . . . . . . Machines Sabotaged . | . . . . . . Overloaded Fab Kills . | . . . . . . Hacking | -11 -10 -10 -9 -9 -9 --------- Run | Yrd Mat Min Mat Min Exi Machines Accessed 10 | . 1 . 8 . 1 Terminals 6 | . 1 . 5 . . Fabricators . | . . . . . . Repair Stations 1 | . . . 1 . . Recycling Units . | . . . . . . Scanalyzers 2 | . . . 2 . . Garrison Access . | . . . . . . Total Hacks 27 | . 3 . 23 . 1 Successful 20 | . 3 . 16 . 1 Failed 6 | . . . 6 . . Catastrophic 2 | . . . 2 . . Database Lockouts 1 | . . . 1 . . Manual 7 | . 1 . 5 . 1 Terminals 16 | . 3 . 13 . . Fabricators . | . . . . . . Repair Stations 3 | . . . 3 . . Recycling Units . | . . . . . . Scanalyzers 7 | . . . 7 . . Garrison Access . | . . . . . . Terminal Hacks 9 | . 2 . 6 . 1 Prototype ID Bank 2 | . . . 2 . . Emergency Access Points 1 | . . . 1 . . Alert Level 1 | . 1 . . . . Transport Status 1 | . . . 1 . . Hauler Manifests 1 | . . . 1 . . Zone Layout 2 | . 1 . 1 . . Proto ID Catalog 1 | . . . . . 1 Fabricator Hacks . | . . . . . . Repair Station Hacks 2 | . . . 2 . . Scan Component 1 | . . . 1 . . Repair 1 | . . . 1 . . Recycling Unit Hacks . | . . . . . . Scanalyzer 6 | . . . 6 . . Insert Component 3 | . . . 3 . . Analyze 2 | . . . 2 . . Retrieve Study 1 | . . . 1 . . Garrison Access Hacks . | . . . . . . Unauthorized Hacks 3 | . 1 . 2 . . Terminals 3 | . 1 . 2 . . Assimilate 1 | . . . 1 . . Botnet 2 | . 1 . 1 . . Fabricators . | . . . . . . Repair Stations . | . . . . . . Recycling Units . | . . . . . . Scanalyzers . | . . . . . . Garrison Access . | . . . . . . Data Cores Recovered . | . . . . . . Used . | . . . . . . Hacking Detections 8 | . 1 . 7 . . Full Trace Events 1 | . . . 1 . . Feedback Events . | . . . . . . Feedback Blocked . | . . . . . . Robot Schematics Acquired . | . . . . . . Robots Built . | . . . . . . Authchips . | . . . . . . Time . | . . . . . . Total Robot Build Rating . | . . . . . . Part Schematics Acquired 2 | . . . 2 . . Parts Built . | . . . . . . Authchips . | . . . . . . Time . | . . . . . . Total Part Build Rating . | . . . . . . Part Studies Acquired 1 | . . . 1 . . Parts Repaired 1 | . . . 1 . . Time 26 | . . . 26 . . Parts Recycled . | . . . . . . Recycled Matter . | . . . . . . Retrieved Matter . | . . . . . . Retrieved Components . | . . . . . . Parts Scanalyzed 2 | . . . 2 . . Part Schematics Acquired 2 | . . . 2 . . Parts Damaged . | . . . . . . Bothacking | -11 -10 -10 -9 -9 -9 ------------ Run | Yrd Mat Min Mat Min Exi Used RIF Installer . | . . . . . . Robots Hacked . | . . . . . . Non-combat . | . . . . . . Combat . | . . . . . . Robot Hacks Applied . | . . . . . . Relay Couplers Released . | . . . . . . Fabnet Peak Effective % . | . . . . . . Robots Rewired . | . . . . . . Allies Hacked . | . . . . . . Hacks Repelled . | . . . . . . Allies | -11 -10 -10 -9 -9 -9 -------- Run | Yrd Mat Min Mat Min Exi Total Allies 3 | . . . . 3 . Largest Group 3 | . . . . 3 2 Highest-Rated Group 40 | . . . . 40 24 Highest-Rated Ally 16 | . . . . 16 16 Total Orders . | . . . . . . Ally Attacks 31 | . . . . 14 17 Total Damage 246 | . . . . 122 124 Kills 3 | . . . . 3 . Allies Corrupted . | . . . . . . Allies Melted . | . . . . . . Intel | -11 -10 -10 -9 -9 -9 ------- Run | Yrd Mat Min Mat Min Exi Active Infowar (turns) 3802 | 99 689 16 1861 790 347 Seismic 3802 | 99 689 16 1861 790 347 Robot Analysis Total . | . . . . . . Derelict Logs Recovered 2 | . . 1 . 1 . Drone Launches . | . . . . . . Drone Recoveries . | . . . . . . Exploration | -11 -10 -10 -9 -9 -9 ------------- Run | Yrd Mat Min Mat Min Exi Turns Passed 4627 | 245 690 626 1861 790 415 Spaces Moved 2410 | 127 381 377 805 481 239 Core 20 | 7 . . . . 13 Treads 2363 | 120 381 377 805 481 199 Legs . | . . . . . . Wheels . | . . . . . . Hover . | . . . . . . Flight 27 | . . . . . 27 Fastest Speed 32 | 50 160 160 160 160 32 Average Speed 162 | 155 160 160 172 160 143 Slowest Speed 240 | 160 160 160 240 160 240 Overloaded Moves . | . . . . . . Propulsion Burnouts . | . . . . . . Robots Hopped . | . . . . . . Potential Cave-ins . | . . . . . . Cave-ins Triggered . | . . . . . . Exploration Rate (%) 60 | 5 58 64 77 98 58 Regions Visited 5 Branch Regions 3 Pre-discovered Areas 1 | . . 1 . . . Known Exits Taken . | . . . . . . Unknown Exits Taken 5 | 1 1 1 1 1 . Scrap Searched 2 | . . 1 . 1 . Spaces Dug 1 | . . . 1 . . Terrain Destroyed 1 | . . . 1 . . Melee 1 | . . . 1 . . Projectile . | . . . . . . AOE . | . . . . . . Terrain Rammed . | . . . . . . Walls Destroyed . | . . . . . . Machines Disabled . | . . . . . . Actions | -11 -10 -10 -9 -9 -9 --------- Run | Yrd Mat Min Mat Min Exi Total 2865 | 157 429 387 1108 495 289 Wait 136 | . 7 1 101 4 23 Move 2406 | 126 380 377 804 480 239 Hop . | . . . . . . Pick Up 57 | 7 14 1 32 2 1 Fast Attach 8 | 5 . 1 1 . 1 Attach 10 | 2 . . 4 . 4 Detach . | . . . . . . Swap 20 | . 3 . 15 1 1 Drop 51 | . 5 1 38 2 5 Fire 146 | 17 18 6 97 3 5 Melee 17 | . . . 7 . 10 Ram . | . . . . . . Kick . | . . . . . . Crush 14 | . 2 . 9 3 . Escape Stasis . | . . . . . . Rewire . | . . . . . . Trap . | . . . . . . Miscellaneous . | . . . . . . Route ------- -11/Scrapyard -10/Materials (discovered 3 exits: *Mat / [*Min x2]) -10/Mines -9/Materials (discovered 3 exits: [*Mat x2] / [*Min]) -9/Mines (discovered 3 exits: [*Mat x2] / *Exi) -9/Exiles History --------- Turn | Location | Event 8 | -11/Scrapyard | Discovered new exit (range 15) 246 | -11/Scrapyard | Entered Materials 247 | -10/Materials | Met a group of wandering Federalists 304 | -10/Materials | Build established: Mutant 398 | -10/Materials | Discovered new exit (range 16) 420 | -10/Materials | Discovered new exit (range 10) 668 | -10/Materials | Discovered new exit (range 15) 936 | -10/Materials | Entered Mines 942 | -10/Mines | Assembled infested the area 947 | -10/Mines | Assisted by a Guerilla fighting off Assembled 1357 | -10/Mines | Found a Scrap Suit stashed away for nefarious purposes 1507 | -10/Mines | Learned location of Mines (-9) 1528 | -10/Mines | Discovered new exit (range 12) 1562 | -10/Mines | Entered Materials 1562 | -9/Materials | Evolved 2 slots: Utility x2 1974 | -9/Materials | Repaired Lgt. Treads 2063 | -9/Materials | Discovered new exit (range 6) 2113 | -9/Materials | Central database locked down 2532 | -9/Materials | Discovered new exit (range 15) 2808 | -9/Materials | Destroyed 7 combat bots 2934 | -9/Materials | Discovered new exit (range 16) 3423 | -9/Materials | Entered Mines 3665 | -9/Mines | Discovered new exit (range 6) 3803 | -9/Mines | Found a damaged Exp. Sensor Array with a note attached 3808 | -9/Mines | Found Prototype Device 3838 | -9/Mines | Learned Materials security intel 3913 | -9/Mines | Assisted by bots powering up and referring to "LRC-V3" 4087 | -9/Mines | Discovered new exit (range 8) 4184 | -9/Mines | Found a hidden stash of uninstalled traps 4204 | -9/Mines | Deemed a non-threat by the Exiles lab entrance 4205 | -9/Mines | Discovered new exit (range 5) 4213 | -9/Mines | Entered Exiles 4213 | -9/Exiles | Accompanied by 2 allies 4252 | -9/Exiles | Met 8R-AWN 4281 | -9/Exiles | Met EX-HEX 4333 | -9/Exiles | Met EX-BIN 4357 | -9/Exiles | Aligned with FarCom system 4359 | -9/Exiles | Given EX-Vault access code 4402 | -9/Exiles | Opened EX-Vault 4415 | -9/Exiles | Found Lightpack 2.0 4449 | -9/Exiles | Warned to stay clear of 0b10 Research branches 4482 | -9/Exiles | Attacked by the Exiles 4563 | -9/Exiles | Core integrity fell below 50% 4598 | -9/Exiles | Lost 11 parts (1p3n4u3w) 4616 | -9/Exiles | Core integrity fell below 20% 4628 | -9/Exiles | Destroyed by 8R-AWN with 8R-AWN's Boregun Last Messages --------------- 04613_ HV Slug penetrates Wall. 04614_ 8R-AWN suffers critical hit (Smash). 04614_ Destroyed Prototype Ballistic Gun. 04614_ 8R-AWN system corrupted by crushing effect. 04614_ 8R-AWN knocked back. 04615_ Penetrated by HV Slug. 04615_ HV Slug penetrates Wall. 04616_ Penetrated by HV Slug. 04616_ HV Slug penetrates Wall. 04617_ 8R-AWN suffers critical hit (Smash). 04617_ Destroyed Prototype Leg. 04617_ 8R-AWN system corrupted by crushing effect. 04620_ HV Slug penetrates Machine. 04620_ Machine disabled. 04620_ HV Slug penetrates Machine. 04621_ Penetrated by HV Slug. 04626_ HV Slug penetrates Wall. 04628_ Penetrated by HV Slug. Map ----- +----------------------------------------------------+ | ?????????????????????????????????????????????????? | | ?????????????????????????????????????????????????? | | ?????????????????????????????????????????????????? | | ?????????????????????????????????????????????????? | | ?????????????????????????????????????????????????? | | ?????????????????????????????????????????????????? | | ?????????????????????????????????????????????????? | | ?????????????????????????????????????????????????? | | ?????????????????????????????????????????????????? | | ?????????????????????????????????????????????????" | | ????????????????????????????????????????????????#" | | ????????????????????????????????????????????????#" | | ????????????????????????????????????????????????#" | | ????????????????????????????????????????????????#" | | ?????????????????????????????????????????????????# | | ?????????????????????????????????????????????????? | | ?????????????????????????????????????????????????? | | ?????????????????????????????????????????????????? | | ???????????????????????#######???????????????????? | | ????????? ######???????#!!! "#???????????????????? | | ????????? #""#??????# "#???????????????????? | | ????????? ??????# "#???????????????????? | | ???????? #????## ""#????????????##?????? | | ???????? #####" ""#???????????? """??? | | ????????# ##" g""#????????????" """#?? | | ?????????# #"" @ #??????????????" ??? | | ????????????# #?????????????"" ??? | | ???????????????# ##????????????"" "#?? | | ???????????????### "#???????????? ""??? | | ?????????########" ###???????????" "???? | | ?????????# !!""""" ##??????????# #???? | | ?????????#! "###" ######???### ###?# | | ?????????#! ="#?## ==! #####X# #"### | | ?????????#! ##??# ![ """" | | ????????#" !"""" "###???#"# ! "" " | | ????????#######;##??????#### % % | | ?????????????? #???????????### % | | ????????????? ???????????????### %% | | ???????????? ??????????????????## | | ???????????????????????????????#"" | | ???????????????????????????????####" | | ??????????????????????????????????#""" | | ??????????????????????????????????#" | | ??????????????????????????????????"" | | ??????????????????????????????????""" "" | | ??????????????????????????????????"" """ | | ???????????????????????????????????" "" | | ??????????????????????????????????" ? | | ??????????????????????????????????"" ? | | ??????????????????????????????????? ? | +----------------------------------------------------+ Best States ------------- Heat Dissipation 28 Energy Generation 12 Energy Capacity 265 Matter Stores 300 Matter Capacity 300 Sight Range 16 Terrain Scan Density 10 Armor Coverage 450 Evasion (%) 63 Recoil Reduction 2 Item Schematics ----------------- Imp. Flight Unit | -9/Materials | Scanalyzed Hrd. Light Armor Plating | -9/Materials | Scanalyzed Robot Schematics ------------------ None Fabricated ------------ Nothing Repaired ---------- Lgt. Treads | 36% | -9/Materials Studied --------- Flight Unit | -9/Materials | Hacked Alien Tech Used ----------------- None Achievements -------------- Power Corrupts Challenges ------------ None Game ------ Seed FissionIntegrityPit Manual? 0 Play Time 00:38:36 Cumulative 11.7 hours Start 2026.02.27 @ 12:56:09 End 2026.02.27 @ 16:52:20 Sessions 5 Manual Loads 0 Difficulty Rogue Special Mode None Game No. 6 Rogue 6 Adventurer 0 Explorer 0 Win Type - Total 0 Types 0/0/0/0/0/0/0/0/0/0 Lore% 18 Gallery% 14 Achievement% 20 Wizard Run 0 Options --------- Layout 1 ASCII 0 Keyboard 1 Movement Arrows Keybinds 0 Fullscreen 2 Font 24/Smallcaps Map View 50x35 Zoom Use 0% Tactical HUD 1 Map Filters NONE Filters NONE Steam 1 RUN: 0544222e-3971-4238-8fdb-e93abc333fe6